Workbook

Sheet фин.план 2011г. 4900
J1: Утверждено общим собранием членов ТСЖ
J3: " ___ " ______________ 2011 года.
C4: Финансовый план 2011г. (тыс.руб.)
B6: Наименование | C6: Членские взносы (4900руб.) | K6: электроэн. | L6: Погашение задолженности | O6: остаток
C7: охрана | D7: рем.обсл.в/о | E7: чистка дор. Благ-ство | F7: ТБО | G7: содерж. эл. Хоз. | H7: авар.ситуац. | I7: сод.ТСЖ | J7: итого | K7: тариф | L7: чл.взн. | M7: э/э | N7: оч.соор. | O7: бюдж.09г.
B8: Доходы
B9: план: | C9: 1749.6 | D9: 115 | E9: 41 | F9: 180 | G9: 489.3 | H9: 96 | I9: =J18 -> 1324.1 | J9: =C9+D9+G9+E9+F9+H9+I9 -> 3995 | K9: 2402.4 | L9: 1602.584 | M9: 480.916 | N9: 873.1 | O9: 93.254
B10: Итого дохоная часть составляет: | J10: =J9+K9+O9 -> 6490.654
B11: Расходы
B12: Охрана | C12: 1749.6 | J12: =C12+O12 -> 1749.6
B13: Рем. и обсл.сист. в/о | D13: 115 | J13: =D13 -> 115
B14: Чистка дорог, благ-во | E14: 41 | J14: =E14 -> 41
B15: Вывоз ТБО | F15: 180 | J15: =F15 -> 180
B16: Содержание эл.хоз. | G16: 489.3 | J16: =G16 -> 489.3
B17: Ликв авар.сит.в/о | H17: 96 | J17: =H17 -> 96
B18: Содержание ТСЖ | J18: =J19+J23+J24+J25+J26+J27+J28+J29+J30+J31 -> 1324.1
B19: З/пл | J19: =J22+J21+J20 -> 729.6
B20: Председатель ТСЖ | I20: 360 | J20: =I20 -> 360
B21: Гл. бухгалтер | I21: 267 | J21: =I21 -> 267
B22: Кассир | I22: 102.6 | J22: 102.6
B23: Налог на з/пл | I23: 103.6 | J23: 103.6
B24: Единый налог | I24: 80 | J24: 80
B25: Обсл. Касс.аппарата | I25: 10 | J25: 10
B26: Програм.обеспеч. | I26: 8 | J26: 8
B27: Услуги связи | I27: 62.4 | J27: 62.4
B28: Канц.товары | I28: 20 | J28: 20
B29: Услуги банка | I29: 22.5 | J29: 22.5
B30: Юридические услуги | I30: 120 | J30: 120
B31: Аренда офиса | I31: 168 | J31: 168
B32: Электроснабжение | J32: =J37+J36+J35+J34+J33 -> 2710.794
B33: Платежи за э/э | J33: =K33 -> 2402.4 | K33: 2402.4
B34: Наружное освещ. | J34: 46
B35: Очист.сооруж. | J35: 56.94
B36: Пост охраны | J36: 105.2
B37: Потери в сетях | J37: 100.254
B38: итого расходы: | C38: =SUM(C12:C37) -> 1749.6 | D38: =SUM(D12:D37) -> 115 | E38: =SUM(E12:E37) -> 41 | F38: =SUM(F12:F37) -> 180 | H38: =SUM(H12:H37) -> 96 | I38: =SUM(I12:I37) -> 1324.1 | J38: =J12+J13+J14+J15+J16+J17+J18+J33 -> 6397.4 | K38: =SUM(K12:K37) -> 2402.4 | L38: =SUM(L12:L37) -> 0 | M38: =SUM(M12:M37) -> 0 | N38: =SUM(N12:N37) -> 0 | O38: =SUM(O12:O37) -> 0
B39: Остаток д/средств: | C39: =C9-C38 -> 0 | D39: =D9-D38 -> 0 | E39: =E9-E38 -> 0 | F39: =F9-F38 -> 0 | H39: =H9-H38 -> 0 | I39: =I9-I38 -> 0 | J39: =J10-J38 -> 93.254 | K39: =K9-K38 -> 0 | L39: =L9-L38 -> 1602.584 | M39: =M9-M38 -> 480.916 | N39: =N9-N38 -> 873.1 | O39: =O9-O38 -> 93.254
L40: Резервный фонд
B42: Списочная численность 70 человек | E42: Расчет произведен на 65 человек

Sheet Фин. план вар.1
A1: Утверждено общим собранием членов ТСЖ "Рассоха" " 01 " февраля 2015 года. | D1: * | H1: 0
A2: Состав ежемесячного сбора по коммунальным услугам и содержанию общего имущества для домовладельцев на территории под управлением ТСЖ "Рассоха" с 1 января 2015 года
A3: № п/п | B3: Наименование | C3: Взнос (руб)
A4: 1 | B4: Ежемесячный сбор, в том числе | C4: =C5+C6+C7+C8+C9+C10+C11+C12+C14 -> 5815
A5: 1.1 | B5: Управление общим имуществом | C5: 1789
A6: 1.2 | B6: Сохранность общего имущества | C6: 2396
A7: 1.3 | B7: Содержание электросетей поселка | C7: 205
A8: 1.4 | B8: Содержание уличного освещения | C8: 42
A9: 1.5 | B9: Содержание и техническое обслуживание очистных сооружений поселка | C9: 339
A10: 1.6 | B10: Содержание и эксплуатация канализационных сетей посёлка | C10: 125
A11: 1.7 | B11: Благоустройство и санитарное содержание мест общего пользования и проездов | C11: 310
A12: 1.8 | B12: Резервный фонд | C12: 393
A13: 2. | B13: Коммунальные услуги, в том числе:
A14: 2.1 | B14: Сбор от домовладений и вывоз на полигон твердых бытовых отходов | C14: 216
A15: 3. | B15: Без вывоза ТБО | C15: 5599
A16: 4. | B16: Для лиц не внесших полностью взнос на ОС по решению собрания 2014г. | C16: 7 599
A17: 5. | B17: Потребление электроэнергии в местах общего пользованния по общим счетчикам | C17: по счетчикам
A18: 6. | B18: Индивидуальное электропотребление | C18: по счетчику
